fUSD/lending_fUSD_20260420
["ID","MTS","AMOUNT","RATE_DAILY","PERIOD"]
[420847310,1776631545189,150.0,9.148e-05,2]
[420847311,1776631545325,151.03186045,9.148e-05,2]
[420847312,1776631551787,200.0,8.96e-05,2]
[420847313,1776631551901,201.29039859,9.148e-05,2]
[420847314,1776631551940,150.0,9.148e-05,2]
[420847315,1776631551976,150.0,9.656e-05,2]
[420847316,1776631552482,150.0,9.148e-05,2]
[420847317,1776631552552,150.0,9.216e-05,2]
[420847318,1776631552622,150.0,9.283e-05,2]
[420847319,1776631552691,150.0,9.351e-05,2]
[420847320,1776631552762,150.0,9.419e-05,2]
[420847321,1776631552834,150.0,9.487e-05,2]
[420847322,1776631552873,150.0,9.555e-05,2]
[420847323,1776631553009,150.0,9.622e-05,2]
[420847324,1776631553044,150.0,9.69e-05,2]
[420847325,1776631553116,150.0,9.758e-05,2]
[420847326,1776631553187,150.0,9.826e-05,2]
[420847327,1776631553260,150.0,9.893e-05,2]
[420847328,1776631553326,150.0,9.961e-05,2]
[420847329,1776631553597,150.0,9.148e-05,2]
[420847330,1776631553656,150.0,9.317e-05,2]
[420847331,1776631553737,150.0,9.487e-05,2]
[420847332,1776631553802,150.0,9.656e-05,2]
[420847333,1776631553870,150.0,9.826e-05,2]
[420847334,1776631554330,200.0,9.16e-05,2]
[420847335,1776631555720,152.0,9.905e-05,7]
[420847336,1776631556447,152.0,9.905e-05,7]
[420847337,1776631557117,152.0,9.905e-05,7]
[420847338,1776631557833,152.0,9.905e-05,7]
[420847339,1776631558533,152.0,9.905e-05,7]
[420847340,1776631558726,187.63076992,9.977e-05,2]
[420847341,1776631559784,152.0,9.905e-05,7]
[420847342,1776631559961,200.0,9.36e-05,2]
[420847343,1776631560023,152.0,9.905e-05,7]
[420847344,1776631560635,152.0,9.905e-05,7]
[420847345,1776631561113,300.0,9.977e-05,2]
[420847346,1776631565075,500.0,9.977e-05,2]
[420847347,1776631565114,500.0,9.977e-05,2]
[420847348,1776631565149,508.57831937,9.977e-05,2]
[420847349,1776631565551,200.0,9.56e-05,2]
[420847350,1776631570508,300.21050458,9.76e-05,2]
[420847351,1776631571334,835.26814709,9.977e-05,3]
[420847352,1776631571366,347.73185291,9.977e-05,3]
[420847353,1776631578372,500.0,9.977e-05,2]
[420847354,1776631578447,406.48708287,9.977e-05,2]
[420847355,1776631578490,500.0,9.977e-05,2]
[420847356,1776631579847,500.0,9.977e-05,2]
[420847357,1776631579881,500.0,9.977e-05,2]
[420847358,1776631579919,355.94097466,9.977e-05,2]
[420847359,1776631593982,500.0,9.977e-05,2]
[420847360,1776631594032,500.0,9.977e-05,2]
[420847361,1776631594095,500.0,9.977e-05,2]
[420847362,1776631594149,480.72055665,9.977e-05,2]
[420847365,1776631611757,500.0,9.977e-05,2]
[420847366,1776631611815,312.40154739,9.977e-05,2]
[420847367,1776631624993,500.0,9.977e-05,2]
[420847368,1776631625040,500.0,9.977e-05,2]
[420847369,1776631625092,355.94097466,9.977e-05,2]
[420847370,1776631629794,152.0,9.977e-05,3]
[420847371,1776631630585,1300.0,9.9e-05,3]
[420847372,1776631636841,320.27972353,9.977e-05,2]
[420847373,1776631641748,500.0,9.977e-05,2]
[420847374,1776631641805,211.8819493,9.977e-05,2]
[420847375,1776631641842,256.62533803,9.977e-05,2]
[420847376,1776631642384,243.37466197,9.977e-05,2]
[420847377,1776631642429,500.0,9.977e-05,2]
[420847378,1776631642474,500.0,9.977e-05,2]
[420847379,1776631642521,500.0,9.977e-05,2]
[420847380,1776631670407,164.0,9.977e-05,3]
[420847381,1776631673328,801.92539945,9.928e-05,2]
[420847382,1776631681980,7290.70993858,9.878e-05,2]
[420847383,1776631682007,5000.01,9.878e-05,2]
[420847384,1776631682034,5000.01,9.878e-05,2]
[420847385,1776631682060,5000.01,9.878e-05,2]
[420847386,1776631682087,10000.01,9.878e-05,2]
[420847387,1776631682112,5000.01,9.878e-05,2]
[420847388,1776631682138,5000.01,9.878e-05,2]
[420847389,1776631682971,5000.01,9.878e-05,2]
[420847390,1776631687087,-150.0,9.678e-05,2]
[420847391,1776631693584,-3620.09,9.878e-05,2]
[420847392,1776631693599,-5000.01,9.878e-05,2]
[420847393,1776631696237,-5000.01,9.878e-05,2]
[420847394,1776631696439,-5000.01,9.878e-05,2]
[420847395,1776631696556,-5000.01,9.878e-05,2]
[420847396,1776631696681,-5000.01,9.878e-05,2]
[420847397,1776631696816,-5000.01,9.878e-05,2]
[420847398,1776631696939,-5000.01,9.878e-05,2]
[420847399,1776631699212,-5000.01,9.878e-05,2]
[420847400,1776631699306,-5000.01,9.878e-05,2]
[420847401,1776631699438,-5000.01,9.878e-05,2]
[420847402,1776631699564,-5000.01,9.878e-05,2]
[420847403,1776631753456,150.0,9.578e-05,2]
[420847410,1776631781220,632.01513129,9.87e-05,2]
[420847411,1776631802991,300.0,9.877e-05,2]
[420847412,1776631803025,1200.0,9.877e-05,2]
[420847413,1776631803070,300.0,9.877e-05,2]
[420847414,1776631806930,1268.0,9.87e-05,3]
[420847415,1776631811539,151.0,9.87e-05,3]
[420847416,1776631830261,152.0,9.87e-05,3]
[420847419,1776631831870,-2350.76077348,9.878e-05,2]
[420847420,1776631831882,-7393.85317137,9.878e-05,2]
[420847421,1776631831894,-2318.46368358,9.878e-05,2]
[420847422,1776631831925,-687.0,9.878e-05,2]
[420847423,1776631831936,-8045.54526625,9.878e-05,2]
[420847424,1776631831979,-326084.71486674,9.878e-05,2]
[420847425,1776631831988,-47559.1493,9.878e-05,2]
[420847426,1776631831998,-277.0,9.878e-05,2]
[420847427,1776631832007,-150.0,9.977e-05,2]
[420847428,1776631832016,-276.0,9.977e-05,2]
[420847429,1776631832026,-150.0,9.978e-05,2]
[420847430,1776631832035,-152.0,9.98e-05,7]
[420847431,1776631832045,-152.0,9.98e-05,7]
[420847432,1776631832055,-152.0,9.98e-05,7]
[420847433,1776631832064,-152.0,9.98e-05,7]
[420847434,1776631832074,-152.0,9.98e-05,7]
[420847435,1776631832084,-152.0,9.98e-05,7]
[420847436,1776631832094,-152.0,9.98e-05,7]
[420847437,1776631832104,-152.0,9.98e-05,7]
[420847438,1776631832113,-150.0,9.988e-05,2]
[420847439,1776631832123,-150.0,9.995e-05,2]
[420847440,1776631832132,-184.69895745,0.0001,2]
[420847441,1776631832142,-500.0,0.0001,2]
[420847442,1776631832151,-151.0,0.0001,2]
[420847443,1776631832161,-395.24826756,0.0001,2]
[420847444,1776631832170,-151.0,0.0001,2]
[420847445,1776631832180,-2700.0,0.0001,3]
[420847446,1776631832189,-151.0,0.0001,2]
[420847447,1776631832199,-151.0,0.0001,2]
[420847448,1776631832208,-200.0,0.0001,2]
[420847449,1776631832217,-151.0,0.0001,2]
[420847450,1776631832227,-151.0,0.0001,2]
[420847451,1776631832236,-150.0,0.00010012,2]
[420847452,1776631832246,-150.0,0.00010019,2]
[420847454,1776631832255,-150.0,0.00010029,2]
[420847456,1776631832265,-150.0,0.00010029,2]
[420847457,1776631832274,-150.0,0.00010032,2]
[420847459,1776631832284,-150.0,0.00010063,2]
[420847460,1776631832293,-152.0,0.00010065,7]
[420847461,1776631832303,-152.0,0.00010065,7]
[420847463,1776631832313,-33071.2974,0.00010069,2]
[420847465,1776631832322,-1000.0,0.00010069,2]
[420847467,1776631832331,-999.99,0.00010069,2]
[420847469,1776631832340,-1192.75,0.00010069,2]
[420847471,1776631832350,-299.99,0.00010069,2]
[420847473,1776631832360,-1573.42,0.00010069,2]
[420847475,1776631832369,-451.9,0.00010069,2]
[420847477,1776631832379,-9999.99,0.00010069,2]
[420847479,1776631832388,-150.99,0.00010069,2]
[420847481,1776631832397,-150.0,0.00010076,2]
[420847483,1776631832407,-500.0,0.00010092,2]
[420847485,1776631832416,-150.0,0.00010092,2]
[420847486,1776631832425,-150.0,0.00010097,2]
[420847488,1776631832435,-150.0,0.00010097,2]
[420847490,1776631832444,-150.0,0.00010114,2]
[420847492,1776631832455,-150.0,0.0001012,2]
[420847493,1776631832464,-284.23043053,0.00010164,2]
[420847494,1776631832474,-180.52766364,0.00010164,2]
[420847495,1776631832483,-150.0,0.00010164,2]
[420847496,1776631832493,-150.0,0.00010164,2]
[420847497,1776631832502,-150.0,0.00010164,2]
[420847498,1776631832511,-299.99999999,0.00010164,2]
[420847499,1776631832521,-150.0,0.00010164,2]
[420847500,1776631832530,-292.92686761,0.00010164,2]
[420847501,1776631832539,-150.0,0.00010164,2]
[420847502,1776631832549,-271.3113675,0.00010164,2]
[420847503,1776631832559,-150.0,0.00010164,2]
[420847504,1776631832574,-190.0,0.0001017,2]
[420847505,1776631832591,-151.0,0.00010171,2]
[420847506,1776631832603,-500.0,0.00010173,2]
[420847507,1776631832613,-500.0,0.00010173,2]
[420847508,1776631832622,-500.48760192,0.00010173,2]
[420847509,1776631832633,-500.0,0.00010173,2]
[420847510,1776631832642,-500.0,0.00010173,2]
[420847511,1776631832653,-500.0,0.00010173,2]
[420847512,1776631832662,-500.0,0.00010173,2]
[420847513,1776631832672,-500.0,0.00010173,2]
[420847514,1776631832681,-155.0,0.00010173,2]
[420847515,1776631832690,-250.0,0.00010173,2]
[420847516,1776631832701,-5657.4535784,0.00010174,2]
[420847517,1776631832710,-243231.66310909,0.00010174,2]
[420847518,1776631832723,-61335.45092351,0.00010174,2]
[420847519,1776631832734,-5444.93342324,0.00010174,2]
[420847520,1776631832747,-29212.76339956,0.00010174,2]
[420847521,1776631832757,-151.0,0.00010174,2]
[420847522,1776631832767,-151.0,0.00010174,2]
[420847523,1776631832776,-5401.102597,0.00010174,2]
[420847524,1776631832785,-6210.0959633,0.00010174,2]
[420847525,1776631832798,-1254.41808677,0.00010174,2]
[420847526,1776631832809,-420.0,0.00010174,2]
[420847527,1776631832821,-27100.28295567,0.00010174,2]
[420847528,1776631832837,-1254.09285305,0.00010174,2]
[420847529,1776631832857,-70843.92154339,0.00010174,2]
[420847530,1776631832869,-3904.47098206,0.00010174,2]
[420847531,1776631832881,-3383.42896817,0.00010174,2]
[420847532,1776631832911,-1948.34190546,0.00010174,2]
[420847535,1776631838048,-842.60235326,0.00010174,2]
[420847536,1776631838059,-467.4334257,0.00010174,2]
[420847537,1776631838071,-4260.6368868,0.00010174,2]
[420847538,1776631838129,-78731.08961447,0.00010174,2]
[420847539,1776631838139,-385.4715324,0.00010174,2]
[420847540,1776631838148,-33606.1861033,0.00010174,2]
[420847541,1776631838158,-1143.97,0.00010174,2]
[420847542,1776631838169,-151.0,0.00010174,2]
[420847543,1776631838179,-151.0,0.00010174,2]
[420847544,1776631838188,-151.0,0.00010174,2]
[420847545,1776631838198,-151.0,0.00010174,2]
[420847546,1776631838208,-151.0,0.00010174,2]
[420847547,1776631838218,-151.0,0.00010174,2]
[420847548,1776631838228,-151.0,0.00010174,2]
[420847549,1776631838237,-28550.8910336,0.00010174,2]
[420847550,1776631838247,-151.0,0.00010174,2]
[420847551,1776631838256,-151.0,0.00010174,2]
[420847552,1776631838266,-151.0,0.00010174,2]
[420847553,1776631838276,-151.0,0.00010175,2]
[420847554,1776631838285,-151.0,0.00010175,2]
[420847555,1776631838295,-881.7232045,0.00010178,2]
[420847556,1776631838304,-151.0,0.00010217,2]
[420847557,1776631838314,-150.0,0.00010278,2]
[420847558,1776631838324,-298.72,0.00010278,2]
[420847559,1776631838333,-1000.0,0.000103,4]
[420847560,1776631838343,-1000.0,0.000103,5]
[420847561,1776631838353,-1000.0,0.000103,6]
[420847562,1776631838363,-382.0,0.00010305,2]
[420847563,1776631838372,-150.0,0.00010308,2]
[420847564,1776631838392,-77548.62,0.00010308,2]
[420847565,1776631838402,-1248.24,0.00010308,2]
[420847566,1776631838412,-1600.0,0.00010308,2]
[420847567,1776631838422,-500.0,0.00010308,2]
[420847568,1776631838431,-151.0,0.00010308,2]
[420847569,1776631838440,-151.0,0.00010308,2]
[420847570,1776631838450,-151.0,0.00010308,2]
[420847572,1776631838459,-218.314304,0.00010308,2]
[420847574,1776631838468,-151.0,0.00010308,2]
[420847576,1776631838477,-151.0,0.00010308,2]
[420847578,1776631838487,-235.021669,0.00010308,2]
[420847579,1776631838498,-151.0,0.00010308,2]
[420847580,1776631838507,-151.0,0.00010308,2]
[420847582,1776631838516,-151.0,0.00010308,2]
[420847584,1776631838528,-151.0,0.00010308,2]
[420847586,1776631838537,-500.0,0.00010366,2]
[420847588,1776631838546,-161.0,0.0001038,2]
[420847590,1776631838556,-161.0,0.0001038,2]
[420847592,1776631838565,-151.0,0.0001038,2]
[420847594,1776631838575,-151.0,0.0001038,2]
[420847596,1776631838585,-151.0,0.0001038,2]
[420847599,1776631838594,-151.0,0.00010383,2]
[420847601,1776631838603,-1143.97,0.00010448,2]
[420847603,1776631838612,-578.20924308,0.00010485,2]
[420847605,1776631838623,-194.72792766,0.00010485,2]
[420847607,1776631838632,-200.0,0.00010485,2]
[420847608,1776631838642,-8882.6885148,0.00010485,2]
[420847609,1776631838651,-1328.27659266,0.00010485,2]
[420847610,1776631838661,-670.58624095,0.00010485,2]
[420847611,1776631838669,-1000.0,0.00010485,2]
[420847612,1776631838679,-743.50770149,0.00010485,2]
[420847613,1776631838688,-1000.0,0.00010485,2]
[420847614,1776631838697,-1000.0,0.00010485,2]
[420847615,1776631838706,-1000.0,0.00010485,2]
[420847616,1776631838715,-1000.0,0.00010485,2]
[420847617,1776631838725,-1000.0,0.00010485,2]
[420847618,1776631838734,-1000.0,0.00010485,2]
[420847619,1776631838743,-194.72792766,0.00010485,2]
[420847620,1776631838752,-1000.0,0.00010485,2]
[420847621,1776631838761,-1000.0,0.00010485,2]
[420847622,1776631838770,-1000.0,0.00010485,2]
[420847623,1776631838779,-1000.0,0.00010485,2]
[420847624,1776631838788,-1000.0,0.00010485,2]
[420847625,1776631838797,-1000.0,0.00010485,2]
[420847626,1776631838806,-151.0,0.00010485,2]
[420847627,1776631838816,-500.0,0.00010485,2]
[420847628,1776631838825,-644.79446246,0.00010485,2]
[420847629,1776631838834,-279.9045709,0.00010485,2]
[420847630,1776631838843,-151.0,0.00010485,2]
[420847631,1776631838852,-219.23011724,0.00010485,2]
[420847632,1776631838861,-227.34163157,0.00010485,2]
[420847633,1776631838870,-235.75327194,0.00010485,2]
[420847634,1776631838879,-151.0,0.00010485,2]
[420847635,1776631838888,-244.476143,0.00010485,2]
[420847636,1776631838897,-156.587,0.00010485,2]
[420847637,1776631838906,-253.52176029,0.00010485,2]
[420847638,1776631838915,-196.12737369,0.00010485,2]
[420847639,1776631838925,-262.90206542,0.00010485,2]
[420847640,1776631838935,-272.62944185,0.00010485,2]
[420847641,1776631838944,-282.71673119,0.00010485,2]
[420847642,1776631838953,-381.42883746,0.00010485,2]
[420847643,1776631838963,-194.72792766,0.00010485,2]
[420847644,1776631838973,-600.0,0.00010538,2]
[420847645,1776631838982,-273.29,0.00010538,2]
[420847646,1776631838992,-9211.34798985,0.0001054,2]
[420847647,1776631839002,-500.0,0.0001054,2]
[420847648,1776631839012,-151.0,0.0001054,2]
[420847649,1776631839022,-200.0,0.00010548,2]
[420847650,1776631839031,-150.0,0.00010578,2]
[420847651,1776631839041,-9552.16786547,0.00010595,2]
[420847652,1776631839051,-500.0,0.00010595,2]
[420847653,1776631839060,-151.0,0.00010595,2]
[420847654,1776631839070,-9156.23162672,0.000106,2]
[420847655,1776631839079,-159.12,0.00010607,2]
[420847656,1776631839089,-166.66,0.00010617,2]
[420847657,1776631839100,-500.0,0.0001064,2]
[420847658,1776631839112,-9905.5980765,0.0001065,2]
[420847659,1776631839121,-500.0,0.0001065,2]
[420847660,1776631839130,-151.0,0.0001065,2]
[420847661,1776631839139,-500.0,0.00010673,2]
[420847662,1776631839149,-500.0,0.00010673,2]
[420847663,1776631839158,-151.0,0.00010697,2]
[420847664,1776631839168,-151.0,0.00010697,2]
[420847665,1776631839178,-151.0,0.00010697,2]
[420847666,1776631839189,-151.0,0.00010697,2]
[420847667,1776631839199,-181.618816,0.00010697,2]
[420847668,1776631839209,-218855.0492722,0.000107,2]
[420847669,1776631839218,-151.0,0.000107,2]
[420847670,1776631839228,-151.0,0.000107,2]
[420847671,1776631839237,-270.669766,0.000107,2]
[420847672,1776631839247,-151.0,0.000107,2]
[420847673,1776631839259,-151.0,0.000107,2]
[420847674,1776631839268,-151.0,0.000107,2]
[420847675,1776631839277,-151.0,0.000107,2]
[420847676,1776631839287,-151.0,0.000107,2]
[420847677,1776631839297,-151.0,0.000107,2]
[420847678,1776631839306,-151.0,0.000107,2]
[420847679,1776631839315,-10272.10520533,0.00010705,2]
[420847680,1776631839324,-500.0,0.00010705,2]
[420847681,1776631839335,-151.0,0.00010705,2]
[420847682,1776631839344,-1096.31638328,0.00010715,2]
[420847683,1776631839354,-503.45930392,0.00010721,2]
[420847684,1776631839363,-1000.0,0.00010721,2]
[420847685,1776631839372,-500.0,0.00010721,2]
[420847686,1776631839392,-500.0,0.00010721,2]
[420847687,1776631839402,-1000.0,0.00010721,2]
[420847688,1776631839411,-1000.0,0.00010721,2]
[420847689,1776631839420,-1143.97,0.00010722,2]
[420847690,1776631839429,-10652.17309792,0.0001076,2]
[420847691,1776631839438,-500.0,0.0001076,2]
[420847692,1776631839447,-11046.30350255,0.00010815,2]
[420847693,1776631839457,-500.0,0.00010815,2]
[420847694,1776631839467,-150.0,0.0001084,2]
[420847695,1776631839476,-250.0,0.00010846,2]
[420847696,1776631839485,-420.0,0.00010864,2]
[420847697,1776631839494,-1680.0,0.00010864,2]
[420847698,1776631839503,-250.0,0.00010865,2]
[420847699,1776631839512,-11455.01673214,0.0001087,2]
[420847700,1776631839522,-500.0,0.0001087,2]
[420847701,1776631839531,-160.0,0.00010877,2]
[420847702,1776631839540,-178.284819,0.00010877,2]
[420847703,1776631839549,-196.569638,0.00010877,2]
[420847704,1776631839558,-186.637131,0.00010877,2]
[420847705,1776631839567,-160.0,0.00010877,2]
[420847706,1776631839576,-1211.258812,0.00010877,2]
[420847707,1776631839585,-2262.517624,0.00010877,2]
[420847708,1776631839594,-160.0,0.00010877,2]
[420847709,1776631839603,-188.398581,0.00010877,2]
[420847710,1776631839613,-216.797162,0.00010877,2]
[420847711,1776631839622,-160.0,0.00010877,2]
[420847712,1776631839631,-412.036068,0.00010877,2]
[420847713,1776631839640,-664.072137,0.00010877,2]
[420847714,1776631839650,-181.547724,0.00010877,2]
[420847715,1776631839659,-160.0,0.00010877,2]
[420847716,1776631839668,-1382.935313,0.00010877,2]
[420847717,1776631839678,-2605.870627,0.00010877,2]
[420847718,1776631839687,-150.0,0.00010878,2]
[420847719,1776631839696,-4100.0,0.000109,3]
[420847720,1776631839706,-5730.07845695,0.000109,2]
[420847721,1776631839715,-500.0,0.00010914,2]
[420847722,1776631839724,-1737.0,0.00010917,5]
[420847723,1776631839734,-1914.0,0.00010917,5]
[420847724,1776631839743,-11878.85235123,0.00010925,2]
[420847725,1776631839753,-500.0,0.00010925,2]
[420847726,1776631839762,-500.0,0.00010959,2]
[420847727,1776631839772,-150.0,0.00010959,2]
[420847728,1776631839782,-3477.93,0.00010959,2]
[420847729,1776631839791,-151.0,0.00010959,2]
[420847730,1776631839800,-151.0,0.00010959,2]
[420847731,1776631839809,-151.0,0.00010959,2]
[420847732,1776631839819,-151.0,0.00010959,2]
[420847733,1776631839828,-151.0,0.00010959,2]
[420847734,1776631839838,-151.0,0.00010959,2]
[420847735,1776631839847,-151.0,0.00010959,2]
[420847736,1776631839856,-151.0,0.00010959,2]
[420847737,1776631839866,-263.538918,0.00010959,2]
[420847738,1776631839875,-3240.0,0.00010959,2]
[420847739,1776631839884,-151.0,0.00010959,2]
[420847740,1776631839894,-151.0,0.00010959,2]
[420847741,1776631839903,-151.0,0.00010959,2]
[420847742,1776631839913,-151.0,0.00010959,2]
[420847743,1776631839923,-151.0,0.00010959,2]
[420847744,1776631839932,-151.0,0.00010959,2]
[420847745,1776631839942,-151.0,0.00010959,2]
[420847746,1776631839954,-151.0,0.00010959,2]
[420847747,1776631839964,-151.0,0.00010959,2]
[420847748,1776631839974,-166.66,0.00010967,2]
[420847749,1776631839983,-255.0,0.00010974,2]
[420847750,1776631839993,-3678.18647707,0.00010975,2]
[420847751,1776631840002,-250.0,0.00010975,2]
[420847753,1776631840012,-250.0,0.00010975,2]
[420847754,1776631840022,-12318.36988823,0.0001098,2]
[420847755,1776631840033,-500.0,0.0001098,2]
[420847756,1776631840044,-389.29,0.00010989,2]
[420847757,1776631840053,-150.01,0.00010989,2]
[420847758,1776631840063,-1143.97,0.00010996,2]
[420847759,1776631840073,-3208.22657772,0.00011,2]
[420847760,1776631840082,-1000.0,0.00011028,2]
[420847761,1776631840091,-724.09468125,0.00011028,2]
[420847762,1776631840101,-201.93286099,0.00011033,2]
[420847763,1776631840111,-200.0,0.00011033,2]
[420847764,1776631840120,-1377.42282659,0.00011033,2]
[420847765,1776631840130,-771.01748645,0.00011033,2]
[420847766,1776631840140,-201.93286099,0.00011033,2]
[420847767,1776631840149,-668.65185757,0.00011033,2]
[420847768,1776631840158,-290.26104003,0.00011033,2]
[420847769,1776631840168,-201.93286099,0.00011033,2]
[420847770,1776631840177,-12774.14957409,0.00011035,2]
[420847771,1776631840187,-500.0,0.00011035,2]
[420847772,1776631840196,-243.62,0.00011056,2]
[420847773,1776631840206,-1268.0,0.00011081,3]
[420847774,1776631840215,-13246.79310833,0.0001109,2]
[420847775,1776631840224,-500.0,0.0001109,2]
[420847776,1776631840234,-200.0,0.00011096,2]
[420847777,1776631840243,-300.0,0.00011098,2]
[420847778,1776631840252,-300.0,0.00011098,2]
[420847779,1776631840261,-300.0,0.00011098,2]
[420847780,1776631840270,-300.0,0.00011098,2]
[420847781,1776631840280,-58811.76102738,0.00011099,2]
[420847782,1776631840289,-58811.7610273,0.00011099,2]
[420847783,1776631840298,-49599.24067772,0.00011099,2]
[420847804,1776631843540,-9212.52034958,0.00011099,2]
[420847805,1776631843551,-151.0,0.00011099,2]
[420847806,1776631843560,-151.0,0.00011099,2]
[420847807,1776631843570,-151.0,0.00011099,2]
[420847808,1776631843580,-151.0,0.00011099,2]
[420847809,1776631843590,-151.0,0.00011099,2]
[420847810,1776631843600,-151.0,0.00011099,2]
[420847811,1776631843611,-151.0,0.00011099,2]
[420847812,1776631843622,-151.0,0.00011099,2]
[420847813,1776631843631,-151.0,0.00011099,2]
[420847814,1776631843642,-151.0,0.00011099,2]
[420847815,1776631843653,-151.0,0.00011099,2]
[420847816,1776631843663,-151.0,0.00011099,2]
[420847818,1776631843674,-151.0,0.00011129,2]
[420847819,1776631843683,-183.699965,0.00011131,2]
[420847821,1776631843693,-13736.92445334,0.00011145,2]
[420847822,1776631843707,-500.0,0.00011145,2]
[420847823,1776631843717,-151.0,0.00011148,2]
[420847825,1776631843727,-6370.5648887,0.00011153,2]
[420847826,1776631843736,-150.0,0.00011178,2]
[420847827,1776631843746,-151.0,0.00011182,2]
[420847828,1776631843755,-151.0,0.00011182,2]
[420847829,1776631843765,-296.449807,0.00011182,2]
[420847830,1776631843775,-151.0,0.00011182,2]
[420847831,1776631843784,-151.0,0.00011182,2]
[420847832,1776631843794,-151.0,0.00011182,2]
[420847833,1776631843804,-225.559911,0.00011182,2]
[420847834,1776631843813,-495.02160344,0.00011188,2]
[420847835,1776631843823,-177.83,0.0001122,2]
[420847836,1776631843833,-1000.0,0.00011221,2]
[420847837,1776631843843,-1000.0,0.00011221,2]
[420847838,1776631843853,-151.0,0.00011223,2]
[420847839,1776631843863,-2000.0,0.00011223,2]
[420847840,1776631843872,-1619.81,0.0001126,2]
[420847841,1776631843883,-1000.0,0.00011268,2]
[420847842,1776631843893,-1500.0,0.00011268,2]
[420847843,1776631843903,-159.12,0.0001127,2]
[420847844,1776631843913,-1143.97,0.0001127,2]
[420847846,1776631843922,-5401.102597,0.00011277,2]
[420847848,1776631843931,-214.2,0.000113,2]
[420847849,1776631843942,-166.66,0.00011318,2]
[420847850,1776631843951,-400.78,0.00011348,2]
[420847851,1776631843962,-247.45,0.00011348,2]
[420847852,1776631843971,-1421.4651638,0.00011372,2]
[420847853,1776631843981,-935.33,0.000114,2]
[420847854,1776631843991,-243.115662,0.00011421,2]
[420847855,1776631844000,-1651.716561,0.00011421,2]
[420847856,1776631844010,-256.907156,0.00011421,2]
[420847857,1776631844019,-561.867366,0.00011421,2]
[420847858,1776631844029,-1885.820882,0.00011421,2]
[420847859,1776631844038,-151.0,0.00011434,2]
[420847860,1776631844048,-37212.0,0.00011452,2]
[420847861,1776631844057,-385.4715324,0.00011456,2]
[420847862,1776631844067,-1262.3485229,0.00011463,2]
[420847863,1776631844076,-300.0,0.00011466,2]
[420847864,1776631844086,-300.0,0.00011466,2]
[420847865,1776631844095,-300.0,0.00011466,2]
[420847866,1776631844105,-151.0,0.00011467,2]
[420847867,1776631844114,-151.0,0.00011467,2]
[420847868,1776631844124,-151.0,0.00011467,2]
[420847869,1776631844133,-151.0,0.00011467,2]
[420847870,1776631844143,-151.0,0.00011467,2]
[420847871,1776631844153,-75691.2863725,0.00011467,2]
[420847872,1776631844163,-2273.85,0.00011507,2]
[420847873,1776631844172,-1932.0,0.00011524,5]
[420847874,1776631844182,-1143.97,0.00011544,2]
[420847875,1776631844191,-300.0,0.00011551,2]
[420847876,1776631844201,-300.0,0.00011551,2]
[420847877,1776631844212,-58811.7610273,0.00011552,2]
[420847878,1776631844222,-200.0,0.00011581,2]
[420847879,1776631844232,-209.40437684,0.00011581,2]
[420847880,1776631844241,-1428.38747117,0.00011581,2]
[420847881,1776631844251,-799.54513345,0.00011581,2]
[420847882,1776631844260,-209.40437684,0.00011581,2]
[420847883,1776631844270,-350.0908678,0.00011581,2]